fUSD/lending_fUSD_20241220
["ID","MTS","AMOUNT","RATE_DAILY","PERIOD"]
[346071867,1734690982543,-153.0,0.00015786,2]
[346071868,1734690982570,-153.0,0.00015786,2]
[346071869,1734690982599,-153.0,0.00015786,2]
[346071870,1734690982625,-153.0,0.00015786,2]
[346071871,1734690982652,-153.0,0.00015786,2]
[346071872,1734690982679,-153.0,0.00015786,2]
[346071873,1734690982706,-153.0,0.00015786,2]
[346071874,1734690982734,-153.0,0.00015786,2]
[346071875,1734690982765,-153.0,0.00015786,2]
[346071876,1734690982794,-153.0,0.00015786,2]
[346071877,1734690982822,-420.0,0.00017262,2]
[346071878,1734690982852,-160.27,0.00017534,2]
[346071879,1734690982880,-1162.82,0.00017693,2]
[346071880,1734691177706,153.41,0.00010137,2]
[346071888,1734691361895,157.82,0.00019508,30]
[346071889,1734691362219,157.82,0.00022236,30]
[346071899,1734691735552,193340.0,0.000225,30]
[346071901,1734691771595,732.0,0.00022,30]
[346071903,1734691832152,800.0,0.000222,120]
[346071910,1734691832329,-160.27,0.00013699,2]
[346071911,1734691832338,-200.73122845,0.00017965,2]
[346071912,1734691832347,-267.27630766,0.00017965,2]
[346071913,1734691832357,-150.0,0.00018027,2]
[346071914,1734691832367,-171.55246389,0.00018065,2]
[346071915,1734691832404,-1056.38517271,0.00018065,2]
[346071916,1734691832607,-1540.0623634,0.00018065,2]
[346071917,1734691832617,-153.41,0.00018065,2]
[346071918,1734691832626,-247.23,0.00018068,2]
[346071919,1734691832634,-252.98,0.00018069,2]
[346071920,1734691832643,-250.6,0.00018072,2]
[346071921,1734691832652,-254.23,0.00018075,2]
[346071922,1734691832662,-251.68,0.00018081,2]
[346071923,1734691832671,-245.86,0.00018092,2]
[346071924,1734691832680,-500.0,0.000181,2]
[346071925,1734691832689,-254.28,0.00018107,2]
[346071926,1734691832701,-247.69,0.00018133,2]
[346071927,1734691832710,-253.59,0.00018175,2]
[346071928,1734691832719,-250.11,0.00018242,2]
[346071929,1734691832729,-245.1,0.00018353,2]
[346071930,1734691832738,-252.77,0.00018518,2]
[346071931,1734691832747,-245.16,0.00018518,2]
[346071932,1734691832757,-253.67,0.00018518,2]
[346071933,1734691832766,-300.0,0.00018617,2]
[346071934,1734691832776,-245.89,0.00018618,2]
[346071935,1734691832786,-246.04,0.00018618,2]
[346071936,1734691832796,-252.62,0.00018618,2]
[346071937,1734691832806,-254.9,0.00018618,2]
[346071938,1734691832815,-252.48,0.00018618,2]
[346071939,1734691832825,-248.68,0.00018618,2]
[346071940,1734691832834,-246.53,0.00018618,2]
[346071941,1734691832843,-249.28,0.00018618,2]
[346071942,1734691832853,-16.14145462,0.00018618,2]
[346071943,1734691832877,-133.85854538,0.00018618,2]
[346071944,1734691832886,-534.14125479,0.00018618,2]
[346071956,1734691838609,-3350.85874521,0.00018618,2]
[346071957,1734691838618,-531.738,0.00018618,2]
[346071958,1734691838628,-23.87817536,0.00018892,2]
[346071959,1734691838639,-243.39813229,0.00018892,2]
[346071960,1734691838648,-500.0,0.00018972,2]
[346071961,1734691838658,-246.11,0.00018972,2]
[346071962,1734691838667,-254.63,0.00018972,2]
[346071963,1734691838676,-325.3,0.00019022,2]
[346071964,1734691838685,-257.84,0.00019056,2]
[346071965,1734691838694,-250.0,0.00019082,2]
[346071966,1734691838711,-718.46418187,0.00019154,2]
[346071967,1734691838730,-5212.249975,0.00019154,2]
[346071968,1734691838813,-2153.54584313,0.00019154,2]
[346071969,1734691838823,-585.55,0.0001917,2]
[346071970,1734691838833,-150.0,0.00019177,2]
[346071971,1734691838842,-250.0,0.00019206,2]
[346071977,1734691838969,-250.0,0.00019209,2]
[346071978,1734691838981,-158.91,0.00019227,2]
[346071979,1734691838991,-1000.0,0.00019249,2]
[346071980,1734691839001,-172.69,0.00019302,2]
[346071982,1734691839011,-1200.0,0.00019609,2]
[346071983,1734691839020,-162.85,0.00019647,2]
[346071984,1734691839030,-3151.0,0.000197,2]
[346071985,1734691839044,-153.0,0.00019751,2]
[346071986,1734691839053,-153.0,0.00019751,2]
[346071987,1734691839063,-153.0,0.00019751,2]
[346071988,1734691839072,-267.27630765,0.00019818,2]
[346071989,1734691839081,-249.11,0.00019876,2]
[346071990,1734691839091,-456.4,0.00019902,2]
[346071991,1734691839100,-456.4,0.00019908,2]
[346071992,1734691839109,-456.4,0.00019913,2]
[346071994,1734691839120,-12611.57199093,0.00019914,2]
[346071995,1734691839132,-10544.49279954,0.00019914,2]
[346071996,1734691839143,-743.93520953,0.00019914,2]
[346071997,1734691839152,-456.4,0.00019918,2]
[346071998,1734691839161,-456.4,0.00019923,2]
[346071999,1734691839170,-456.4,0.00019928,2]
[346072000,1734691839179,-456.4,0.00019934,2]
[346072001,1734691839188,-5716.99,0.00019936,2]
[346072002,1734691839198,-456.4,0.00019939,2]
[346072003,1734691839207,-456.4,0.00019944,2]
[346072004,1734691839217,-456.4,0.00019949,2]
[346072005,1734691839226,-456.4,0.00019955,2]
[346072006,1734691839235,-1162.82,0.00019957,2]
[346072007,1734691839245,-456.4,0.0001996,2]
[346072008,1734691839254,-250.0,0.00019963,2]
[346072009,1734691839263,-456.4,0.00019965,2]
[346072010,1734691839272,-456.4,0.0001997,2]
[346072011,1734691839282,-200.0,0.00019973,2]
[346072012,1734691839291,-200.0,0.00019973,2]
[346072013,1734691839300,-456.4,0.00019976,2]
[346072014,1734691839309,-456.4,0.00019981,2]
[346072015,1734691839318,-456.4,0.00019986,2]
[346072016,1734691839327,-456.4,0.00019991,2]
[346072017,1734691839336,-456.4,0.00019996,2]
[346072018,1734691839345,-456.4,0.00020002,2]
[346072019,1734691839354,-500.0,0.00020068,2]
[346072020,1734691839363,-1000.0,0.00020068,2]
[346072021,1734691839372,-160.27,0.00020091,2]
[346072022,1734691839381,-493.07,0.00020102,2]
[346072023,1734691839390,-12491.50188326,0.000202,2]
[346072024,1734691839402,-3493.0012809,0.000202,2]
[346072025,1734691840890,-906.28416967,0.000202,2]
[346072026,1734691840902,-430.05,0.000202,2]
[346072027,1734691840914,-678.15,0.000202,2]
[346072028,1734691840925,-711.34,0.000202,2]
[346072029,1734691840937,-1384.72847445,0.000202,2]
[346072030,1734691840948,-556.4775,0.000202,2]
[346072031,1734691840961,-903.13669172,0.000202,2]
[346072032,1734691840970,-420.0,0.00020301,2]
[346072033,1734691840980,-1111.0,0.00020335,2]
[346072034,1734691840990,-411.99330828,0.00020482,2]
[346072035,1734691841002,-139.56028142,0.00020482,2]
[346072036,1734691841011,-158.91,0.00020509,2]
[346072037,1734691841021,-206.0,0.0002052,2]
[346072038,1734691841031,-267.0,0.0002052,2]
[346072039,1734691841040,-933.3431,0.000206,2]
[346072040,1734691841050,-2781.0294,0.000207,2]
[346072041,1734691841059,-310.821,0.000207,2]
[346072042,1734691841068,-11220.8996965,0.000208,2]
[346072069,1734691843486,-6987.7324035,0.000208,2]
[346072071,1734691843496,-520.102,0.0002082,2]
[346072072,1734691843505,-206.0,0.000209,2]
[346072074,1734691843514,-1277.283,0.00021,2]
[346072076,1734691843523,-167.57,0.00021014,2]
[346072078,1734691843532,-151.0,0.00021095,2]
[346072079,1734691843540,-200.0,0.00021096,2]
[346072081,1734691843549,-150.0,0.00021132,4]
[346072083,1734691843559,-150.0,0.00021132,4]
[346072084,1734691843568,-150.0,0.00021132,4]
[346072085,1734691843576,-150.0,0.00021132,4]
[346072086,1734691843585,-150.0,0.00021132,4]
[346072087,1734691843594,-500.0,0.00021164,2]
[346072088,1734691843603,-603.74063412,0.00021164,2]
[346072089,1734691843612,-1000.0,0.00021164,2]
[346072090,1734691843622,-151.0,0.00021195,2]
[346072091,1734691843631,-150.0,0.00021225,4]
[346072092,1734691843640,-206.0,0.0002127,2]
[346072093,1734691843749,-314.9879487,0.00021275,2]
[346072094,1734691843761,-150.0,0.00021319,4]
[346072095,1734691843770,-400.0,0.000214,7]
[346072096,1734691843779,-150.0,0.00021413,4]
[346072097,1734691843788,-800.0,0.000215,7]
[346072098,1734691843798,-343.9123,0.00021503,2]
[346072099,1734691843807,-8852.6772,0.00021503,2]
[346072100,1734691843816,-150.0,0.00021507,4]
[346072101,1734691843825,-150.0,0.00021523,4]
[346072102,1734691843834,-314.9879487,0.00021548,2]
[346072104,1734691843843,-1300.0,0.000216,7]
[346072106,1734691843853,-8000.0,0.000216,2]
[346072107,1734691843863,-150.0,0.00021601,4]
[346072108,1734691843872,-150.0,0.00021601,4]
[346072109,1734691843881,-6147.37044536,0.00021616,2]
[346072110,1734691843890,-150.0,0.00021618,2]
[346072111,1734691843899,-3885.0,0.00021618,2]
[346072112,1734691843908,-6147.37044527,0.00021638,2]
[346072114,1734691843917,-206.0,0.0002164,2]
[346072115,1734691843927,-1000.0,0.00021655,2]
[346072116,1734691843935,-6147.37044527,0.00021661,2]
[346072117,1734691843944,-6147.37044527,0.00021683,2]
[346072118,1734691843959,-150.0,0.00021695,4]
[346072119,1734691843968,-1700.0,0.000217,7]
[346072120,1734691843977,-6147.37044527,0.00021705,2]
[346072121,1734691843986,-2500.0,0.00021706,2]
[346072122,1734691843996,-425.02160785,0.00021717,2]
[346072123,1734691844005,-5000.0,0.00021717,2]
[346072125,1734691844014,-6147.37044527,0.00021728,2]
[346072127,1734691844023,-500.0,0.00021741,2]
[346072129,1734691844033,-3080.75060833,0.0002175,2]
[346072131,1734691844047,-3066.61983694,0.0002175,2]
[346072133,1734691844056,-6147.37044527,0.00021772,2]
[346072136,1734691844066,-150.0,0.00021789,4]
[346072139,1734691844075,-158.91,0.00021791,2]
[346072141,1734691844084,-6147.37044527,0.00021795,2]
[346072143,1734691844093,-2100.0,0.000218,7]
[346072145,1734691844102,-43504.28624734,0.00021816,5]
[346072147,1734691844111,-480.0998,0.00021817,2]
[346072149,1734691844121,-4669.1418,0.00021817,2]
[346072151,1734691844131,-19832.7198,0.00021817,2]
[346072153,1734691844141,-500.0,0.00021817,2]
[346072155,1734691844150,-1000.0,0.00021817,2]
[346072157,1734691844159,-200.07725191,0.00021817,2]
[346072159,1734691844168,-237.93055287,0.00021817,2]
[346072161,1734691844178,-161.05242704,0.00021817,2]
[346072163,1734691844187,-77582.14947276,0.00021817,2]
[346072165,1734691844196,-6147.37044527,0.00021817,2]
[346072167,1734691844211,-184.17808756,0.00021817,2]
[346072169,1734691844221,-150.0,0.00021883,4]
[346072171,1734691844231,-267.0,0.0002189,2]
[346072173,1734691844240,-400.0,0.000219,7]
[346072175,1734691844250,-152.58,0.00021906,2]
[346072177,1734691844259,-152.58,0.00021906,2]
[346072179,1734691844269,-152.58,0.00021906,2]
[346072181,1734691844278,-152.58,0.00021906,2]
[346072183,1734691844287,-152.58,0.00021906,2]
[346072185,1734691844297,-152.58,0.00021906,2]
[346072187,1734691844305,-152.58,0.00021906,2]
[346072189,1734691844315,-152.58,0.00021906,2]
[346072191,1734691844324,-152.58,0.00021906,2]
[346072193,1734691844334,-150.0,0.00021914,4]
[346072195,1734691844344,-535.4,0.00021916,2]
[346072197,1734691844353,-896.31880208,0.00021916,2]
[346072199,1734691844362,-3000.0,0.00021916,2]
[346072201,1734691844372,-1059.0,0.00021916,2]
[346072203,1734691844382,-245730.96436882,0.00021917,3]
[346072209,1734691844427,-14010.76297974,0.00021917,3]
[346072211,1734691844438,-487.48999613,0.00021917,3]
[346072213,1734691844448,-492.67199996,0.00021917,3]
[346072218,1734691844486,-402029.26556885,0.00021917,3]
[346072406,1734691846317,-493.2,0.000212,2]
[346072408,1734691846327,-6.8,0.000217,2]
[346072418,1734691846402,-196.51,0.000217,2]
[346072420,1734691846411,-949.46189811,0.00021917,3]
[346072422,1734691846423,-4765.07487737,0.00021917,3]
[346072424,1734691846435,-956.31573138,0.00021917,3]
[346072436,1734691846542,-20.51786283,0.00021917,3]
[346072471,1734691846862,-837.98971648,0.00021917,3]
[346072474,1734691846880,-76852.58464099,0.00021917,3]
[346072478,1734691846912,-3415.66449189,0.00021917,3]
[346072497,1734691847034,-3853.50072106,0.00021917,3]
[346072592,1734692060266,179.35,0.00010137,2]
[346072609,1734692441779,157.82,0.0002036,30]
[346072610,1734692461034,450.0,0.00013,2]
[346072628,1734692694408,-500.0,0.00015,2]
[346072633,1734692864387,-160.27,0.00013699,2]
[346072657,1734693031782,-800.0,0.00015014,2]
[346072658,1734693031792,-179.35,0.00016813,2]
[346072659,1734693031802,-550.0,0.00017,2]
[346072660,1734693031811,-1015.099,0.00017618,2]
[346072661,1734693031820,-150.0,0.00017618,2]
[346072662,1734693031830,-251.92,0.000186,2]
[346072663,1734693031840,-247.43,0.000186,2]
[346072664,1734693031849,-245.73,0.000186,2]
[346072665,1734693031858,-253.41,0.000186,2]
[346072666,1734693031868,-78.87433074,0.000186,2]
[346072667,1734693031879,-175.67566926,0.000186,2]
[346072668,1734693031888,-245.51,0.000186,2]
[346072669,1734693031897,-253.08,0.000186,2]
[346072670,1734693031909,-500.0,0.000186,2]
[346072671,1734693031918,-150.0,0.00018618,2]
[346072672,1734693031927,-242.31122166,0.00018665,2]
[346072673,1734693031943,-9.34877834,0.00018665,2]
[346072674,1734693031952,-250.08,0.00018693,2]
[346072675,1734693031962,-252.38,0.00018738,2]
[346072676,1734693031971,-254.48,0.00018808,2]
[346072677,1734693032137,-252.36,0.0001892,2]
[346072678,1734693032161,-600.0,0.00019,2]
[346072680,1734693032182,-253.87,0.00019099,2]
[346072682,1734693032205,-1066.98,0.00019167,2]
[346072683,1734693032226,-250.0,0.00019795,2]
[346072684,1734693032248,-307.483216,0.00019838,2]
[346072685,1734693032272,-3940.94612325,0.00019878,2]
[346072694,1734693037478,-1052.18036499,0.00019878,2]
[346072695,1734693037490,-464.84002803,0.00019878,2]
[346072696,1734693037584,-11338.18819176,0.00019878,2]
[346072697,1734693037595,-472.785,0.00019878,2]
[346072698,1734693037852,-6631.06029197,0.00019878,2]
[346072699,1734693037861,-1087.02,0.00019904,2]
[346072700,1734693037870,-294.95559231,0.00019932,2]
[346072701,1734693037973,-1415.00670363,0.00019932,2]
[346072702,1734693037985,-593.64770406,0.00019932,2]
[346072703,1734693037995,-960.0,0.00019939,2]
[346072704,1734693038004,-250.0,0.00019971,2]
[346072705,1734693038014,-500.0,0.00020068,2]
[346072706,1734693038023,-900.0,0.00020068,2]
[346072707,1734693038033,-1000.0,0.00020141,2]
[346072708,1734693038042,-172.69,0.00020145,2]
[346072709,1734693038051,-158.91,0.00020172,2]
[346072710,1734693038060,-200.0,0.00020191,2]
[346072711,1734693038069,-152.03,0.00020292,2]
[346072712,1734693038079,-240.0,0.00020292,2]
[346072713,1734693038089,-3000.0,0.000203,2]
[346072714,1734693038098,-152.03,0.00020302,2]
[346072715,1734693038108,-152.03,0.00020311,2]
[346072716,1734693038117,-152.03,0.0002032,2]
[346072717,1734693038127,-152.03,0.00020329,2]
[346072718,1734693038136,-152.03,0.00020338,2]
[346072719,1734693038145,-152.03,0.00020348,2]
[346072720,1734693038155,-800.0,0.00020356,2]
[346072721,1734693038167,-152.03,0.00020357,2]
[346072722,1734693038176,-152.03,0.00020366,2]
[346072723,1734693038186,-152.03,0.00020375,2]
[346072724,1734693038195,-152.03,0.00020385,2]
[346072725,1734693038205,-152.03,0.00020394,2]
[346072726,1734693038225,-1000.0,0.00020411,2]
[346072727,1734693038235,-976.77,0.00020411,2]
[346072728,1734693038245,-436.13,0.00020411,2]
[346072729,1734693038255,-436.13,0.00020411,2]
[346072730,1734693038265,-175.99,0.00020411,2]
[346072732,1734693038275,-365.0,0.00020411,2]
[346072734,1734693038284,-200.0,0.00020431,2]
[346072736,1734693038294,-723.0,0.00020453,2]
[346072738,1734693038303,-306.03,0.00020548,2]
[346072740,1734693038313,-1451.29,0.00020583,2]
[346072742,1734693038324,-250.0,0.00020587,2]
[346072744,1734693038334,-150.0,0.00020618,2]
[346072746,1734693038344,-510.975,0.0002082,2]
[346072748,1734693038353,-7863.0,0.00021,2]
[346072750,1734693038363,-650.0,0.00021,2]
[346072752,1734693038373,-436.8,0.00021068,2]
[346072754,1734693038383,-1408.51,0.00021068,2]
[346072756,1734693038393,-436.8,0.00021068,2]
[346072758,1734693038402,-441.54170218,0.00021068,2]
[346072761,1734693038421,-328.66829782,0.00021068,2]
[346072763,1734693038431,-770.21,0.00021068,2]
[346072765,1734693038444,-436.8,0.00021068,2]
[346072767,1734693038454,-436.8,0.00021068,2]
[346072769,1734693038463,-770.21,0.00021068,2]
[346072771,1734693038473,-770.21,0.00021068,2]
[346072773,1734693038482,-436.8,0.00021068,2]
[346072775,1734693038492,-319.11,0.00021068,2]
[346072777,1734693038501,-231.28,0.00021068,2]
[346072779,1734693038511,-599.39,0.00021068,2]
[346072780,1734693038520,-1021.826,0.00021132,2]
[346072782,1734693038531,-900.0,0.00021164,2]
[346072784,1734693038541,-1091.48,0.00021178,2]
[346072786,1734693038551,-150.33,0.00021178,2]
[346072788,1734693038560,-317.51,0.00021178,2]
[346072790,1734693038570,-436.13,0.00021178,2]
[346072792,1734693038579,-976.77,0.00021233,2]
[346072794,1734693038589,-305.16,0.00021233,2]
[346072796,1734693038598,-512.31874775,0.00021233,2]
[346072798,1734693038610,-464.45125225,0.00021233,2]
[346072800,1734693038619,-976.77,0.00021233,2]
[346072802,1734693038630,-150.0,0.00021427,4]
[346072804,1734693038640,-150.0,0.00021427,4]
[346072806,1734693038649,-150.0,0.00021427,4]
[346072808,1734693038659,-1066.98,0.0002143,2]
[346072810,1734693038671,-275.7767948,0.00021477,2]
[346072812,1734693038680,-150.0,0.00021576,4]
[346072814,1734693038690,-150.0,0.00021618,2]
[346072816,1734693038699,-3131.2865,0.00021717,2]
[346072818,1734693038708,-17531.86882783,0.00021717,2]
[346072820,1734693038720,-490.19083531,0.00021717,2]
[346072822,1734693038730,-150.0,0.00021725,4]
[346072825,1734693038740,-500.0,0.00021741,2]
[346072827,1734693038749,-200.0,0.00021815,2]
[346072828,1734693038759,-374.46558612,0.00021816,2]
[346072831,1734693038768,-374.46558612,0.00021816,2]
[346072832,1734693038778,-374.46558612,0.00021816,2]
[346072835,1734693038787,-379.8879,0.00021816,2]
[346072837,1734693038796,-374.46558612,0.00021816,2]
[346072839,1734693038806,-374.46558612,0.00021817,2]
[346072840,1734693038815,-374.46558612,0.00021817,2]
[346072841,1734693038825,-1000.0,0.00021817,2]
[346072842,1734693038834,-5000.0,0.00021817,2]
[346072843,1734693038843,-23059.2422,0.00021817,2]
[346072844,1734693038853,-374.46558612,0.00021817,2]
[346072845,1734693038862,-374.46558612,0.00021817,2]
[346072846,1734693038873,-261.69736249,0.00021817,2]
[346072847,1734693038883,-167.6732758,0.00021817,2]
[346072848,1734693038893,-374.46558612,0.00021817,2]
[346072849,1734693038902,-917.73119132,0.00021817,2]
[346072850,1734693038916,-555.10777011,0.00021817,2]
[346072851,1734693038926,-182.30409544,0.00021817,2]
[346072852,1734693038936,-330.29482038,0.00021817,2]
[346072853,1734693038945,-150.0,0.00021874,4]
[346072854,1734693038955,-152.59,0.00021907,2]
[346072855,1734693038965,-152.59,0.00021907,2]
[346072856,1734693038974,-152.59,0.00021907,2]
[346072857,1734693038983,-152.59,0.00021907,2]
[346072858,1734693038992,-410.5,0.0002191,15]
[346072859,1734693039001,-152.0,0.00021911,3]
[346072860,1734693039010,-958.41,0.00021916,3]
[346072861,1734693039019,-194.09488395,0.00021916,2]
[346072862,1734693039029,-500.0,0.00021916,2]
[346072863,1734693039038,-500.0,0.00021916,2]
[346072864,1734693039048,-184.30142934,0.00021916,2]
[346072865,1734693039060,-315.69857066,0.00021916,2]
[346072866,1734693039070,-435.846595,0.00021916,2]
[346072867,1734693039079,-500.0,0.00021916,2]
[346072868,1734693039089,-500.0,0.00021916,2]
[346072869,1734693039099,-464.77615527,0.00021916,2]
[346072870,1734693039109,-3000.0,0.00021916,2]
[346072871,1734693039119,-7887.0,0.00021916,4]
[346072872,1734693039129,-1356.37775418,0.00021916,3]
[346072873,1734693039141,-471.605,0.00021916,3]
[346072876,1734693039661,-3218.52114209,0.00021916,3]
[346072877,1734693039680,-297.04429955,0.00021916,3]
[346072878,1734693039778,-68438.45180418,0.00021916,3]
[346072879,1734693039789,-1205.0,0.00021916,2]
[346072880,1734693039798,-53296.43870882,0.00021916,3]
[346072881,1734693039810,-312.3160075,0.00021916,3]
[346072882,1734693039878,-509.71667059,0.00021916,3]
[346072883,1734693039890,-384.644286,0.00021916,3]
[346072884,1734693039904,-301.92197159,0.00021916,3]
[346072885,1734693039972,-2290.10162813,0.00021916,3]
[346072886,1734693039983,-774.6985844,0.00021916,3]
[346072895,1734693040310,-16412.2612004,0.00021916,3]
[346072915,1734693042538,-276.37794197,0.00018327,2]
[346072916,1734693042552,-179.86856121,0.00018327,2]
[346072917,1734693042563,-735.22143879,0.00021916,3]
[346072918,1734693042803,-204249.51414004,0.00021916,3]
[346072919,1734693042871,-1068.65976086,0.00021916,3]
[346072920,1734693042882,-3430.70248842,0.00021916,3]
[346072921,1734693042893,-5247.75000001,0.00021916,3]
[346072922,1734693042905,-4001.279952,0.00021916,3]
[346073204,1734693045733,-251.5,0.00019878,2]
[346073206,1734693045743,-4466.42478381,0.00021916,3]
[346073222,1734693045880,-1934.6211569,0.00021916,3]
[346073224,1734693045891,-16650.0,0.00021916,3]
[346073226,1734693045903,-9514.47,0.00021916,3]
[346073232,1734693045955,-415.70006631,0.00021916,3]
[346073273,1734693046333,-983.0,0.00021916,2]
[346073275,1734693046342,-458.9276992,0.00021916,3]
[346073277,1734693046353,-4119.16540577,0.00021916,3]
[346073279,1734693046364,-693.71658246,0.00021916,3]
[346078860,1734693301286,157.49,0.00020844,30]
[346078861,1734693326351,1043.0,0.000225,30]
[346078867,1734693419088,470.76099713,0.000235,120]
[346078869,1734693594053,160.27,0.00013699,2]
[346078871,1734693773009,-252.67642441,0.00016781,7]
[346078872,1734693773032,-1049.32357559,0.0001831,2]
[346078884,1734694042058,154.7,0.00010137,2]
[346078885,1734694055871,-525.26359707,0.00017,5]
[346078886,1734694055895,-154.7,0.00017599,2]
[346078887,1734694055919,-300.0,0.00018308,2]
[346078888,1734694081259,220.03640293,0.00018308,2]
[346078906,1734694192758,157.49,0.00019965,30]
[346078933,1734694232063,-1061.19,0.00017828,2]
[346078934,1734694232072,-2093.0,0.00018,5]
[346078935,1734694232081,-766.01936755,0.00018301,2]
[346078936,1734694232093,-33.98063245,0.00018301,2]
[346078937,1734694232103,-378.42755744,0.00018301,2]
[346078938,1734694232114,-35.26244256,0.00018301,2]
[346078939,1734694232123,-300.0,0.00018308,2]
[346078940,1734694232133,-246.9,0.00018309,2]
[346078941,1734694232149,-254.42,0.00018309,2]
[346078942,1734694232159,-251.11,0.00018309,2]
[346078943,1734694232169,-249.64,0.00018309,2]
[346078944,1734694232179,-250.8,0.00018309,2]
[346078945,1734694232188,-249.23,0.00018309,2]
[346078946,1734694232198,-204.67755744,0.00018309,2]
[346078947,1734694232209,-40.88244256,0.00018309,2]
[346078948,1734694232219,-245.14,0.00018309,2]
[346078949,1734694232229,-24.1068922,0.0001831,2]
[346078950,1734694232241,-298.44,0.0001831,2]
[346078951,1734694232260,-904.90792428,0.0001831,2]
[346078952,1734694232271,-734.49318352,0.0001831,2]
[346078953,1734694232280,-150.0,0.0001831,2]
[346078954,1734694232289,-619.40921648,0.0001831,2]
[346078955,1734694232301,-32.41878352,0.0001831,2]
[346078956,1734694232310,-246.91,0.0001831,2]
[346078957,1734694232319,-248.84,0.0001831,2]
[346078958,1734694232328,-252.92,0.0001831,2]
[346078959,1734694232337,-245.56,0.0001831,2]
[346078960,1734694232346,-3007.0,0.000193,2]
[346078961,1734694232355,-432.0,0.00019731,2]
[346078962,1734694232365,-167.32,0.0001974,2]
[346078963,1734694232374,-250.0,0.00019743,2]
[346078964,1734694232383,-500.0,0.00019746,2]
[346078965,1734694232394,-167.41,0.0001976,2]
[346078966,1734694232403,-250.0,0.00019792,2]
[346078967,1734694232413,-200.0,0.00019945,2]
[346078968,1734694232422,-420.0,0.0001997,2]
[346078969,1734694232432,-800.0,0.00019973,2]
[346078970,1734694232441,-200.0,0.00019975,2]
[346078971,1734694232450,-8301.14481648,0.0001998,2]
[346078972,1734694232471,-11241.7980259,0.0001998,2]
[346078973,1734694232480,-150.0,0.00019988,2]
[346078974,1734694232489,-2491.80303433,0.0002,2]
[346078975,1734694232499,-26933.80686757,0.0002,4]
[346078976,1734694232508,-23900.0,0.00020015,2]
[346078977,1734694232517,-900.0,0.00020068,2]
[346078978,1734694232527,-500.0,0.00020068,2]
[346078979,1734694232536,-1061.19,0.00020091,2]
[346078980,1734694232545,-2751.0,0.00020276,2]
[346078981,1734694232555,-293.21,0.00020291,2]
[346078982,1734694232564,-293.21,0.00020296,2]
[346078983,1734694232573,-4447.82681942,0.000203,2]
[346078984,1734694232582,-293.21,0.00020301,2]
[346078985,1734694232591,-189.62,0.00020305,2]
[346078987,1734694232600,-293.21,0.00020307,2]
[346078989,1734694232610,-293.21,0.00020312,2]
[346078991,1734694232619,-250.0,0.00020314,2]
[346078993,1734694232629,-293.21,0.00020317,2]
[346078994,1734694232638,-293.21,0.00020323,2]
[346078998,1734694232782,-1500.0,0.00020325,2]
[346078999,1734694232792,-293.21,0.00020328,2]
[346079000,1734694232802,-293.21,0.00020333,2]
[346079001,1734694232815,-293.21,0.00020339,2]
[346079002,1734694232824,-293.21,0.00020344,2]
[346079003,1734694232834,-293.21,0.00020349,2]
[346079004,1734694232843,-250.0,0.00020353,2]
[346079005,1734694232853,-293.21,0.00020355,2]
[346079006,1734694232862,-293.21,0.0002036,2]